bitfinex-derivatives/quotes_BNBF0:USTF0_20250630
["timestamp","ask_amount","ask_price","bid_price","bid_amount"]
[1751306351747,3.79125171,659.4,658.1,1.12062623]
[1751306351948,3.79125171,659.4,658.11,1.12062623]
[1751306352144,3.79125171,659.42,658.12,1.12062623]
[1751306352444,3.79125171,659.42,658.13,1.12062623]
[1751306352643,3.79125171,659.4,658.14,1.12062623]
[1751306352848,3.79125171,659.4,658.15,1.12062623]
[1751306353049,3.79125171,659.4,658.16,1.12062623]
[1751306353247,3.79125171,659.4,658.17,1.12062623]
[1751306353447,3.79125171,659.4,658.18,1.12062623]
[1751306353651,3.79125171,659.41,658.19,1.12062623]
[1751306353953,3.79125171,659.41,657.97,0.26428105]
[1751306354152,3.79125171,659.41,657.98,2.12607995]
[1751306354455,3.79125171,659.41,657.99,2.12607995]
[1751306354754,3.79125171,659.43,658.0,2.12607995]
[1751306354954,3.79125171,659.43,658.01,2.12607995]
[1751306355150,3.79125171,659.43,658.02,2.12607995]
[1751306355454,3.79125171,659.43,658.03,2.12607995]
[1751306355650,3.79125171,659.44,658.04,2.12607995]
[1751306355851,3.79125171,659.44,658.05,2.12607995]
[1751306356049,3.79125171,659.44,658.06,2.12607995]
[1751306356250,3.79125171,659.44,658.07,1.12035402]
[1751306356450,3.79125171,659.44,658.08,1.12035402]
[1751306356748,3.79125171,659.45,658.09,1.12035402]
[1751306356954,3.79125171,659.45,658.1,1.12035402]
[1751306357150,3.79125171,659.45,658.11,1.12035402]
[1751306357360,3.79125171,659.38,658.12,1.12035402]
[1751306357551,3.79125171,659.38,657.97,0.26428105]
[1751306357750,3.79125171,659.38,657.98,2.12613787]
[1751306358053,3.79125171,659.38,657.99,2.12613787]
[1751306358254,3.79125171,659.38,658.0,2.12613787]
[1751306358551,3.79125171,659.38,658.01,2.12613787]
[1751306358759,3.79125171,659.38,658.02,1.12046641]
[1751306358955,3.79125171,659.38,658.03,2.12613787]
[1751306359156,3.79125171,659.38,658.04,2.12613787]
[1751306359360,3.79125171,659.38,658.05,2.12613787]
[1751306359557,3.79125171,659.38,658.06,1.12046641]
[1751306359756,3.79125171,659.38,658.07,1.12046641]
[1751306359952,3.79125171,659.38,658.08,1.12046641]
[1751306360157,3.79125171,659.38,658.09,1.12046641]
[1751306360357,3.79125171,659.38,658.1,1.12046641]
[1751306360553,3.79125171,659.38,658.11,1.12046641]
[1751306360753,3.79125171,659.38,658.12,1.12046641]
[1751306360955,3.79125171,659.39,657.97,0.26428105]
[1751306361156,3.79125171,659.39,657.98,2.12595682]
[1751306361356,3.79125171,659.39,657.99,2.12595682]
[1751306361560,3.79125171,659.34,658.0,2.12595682]
[1751306361757,3.79125171,659.34,658.01,2.12595682]
[1751306361957,3.79125171,659.32,658.02,2.12595682]
[1751306362260,3.79125171,659.32,658.03,2.12595682]
[1751306362461,3.79125171,659.32,658.04,1.12030467]
[1751306362661,3.79125171,659.32,658.05,1.12030467]
[1751306362867,3.79125171,659.32,658.06,1.12030467]
[1751306363066,3.79125171,659.3,658.07,1.12030467]
[1751306363357,3.79125171,659.3,658.08,1.12030467]
[1751306363660,3.79125171,659.3,658.09,1.12030467]
[1751306363858,3.79125171,659.3,658.1,1.12030467]
[1751306364159,3.79125171,659.29,658.11,1.12030467]
[1751306364462,3.79125171,659.29,658.12,1.12030467]
[1751306364661,3.79125171,659.32,657.97,0.26428105]
[1751306364958,3.79125171,659.32,657.98,2.12576621]
[1751306365157,3.79125171,659.32,657.99,2.12576621]
[1751306365457,3.79125171,659.32,658.0,2.12576621]
[1751306365661,3.79125171,659.3,658.01,2.12576621]
[1751306365958,3.79125171,659.3,658.02,1.12015167]
[1751306366157,3.79125171,659.3,658.03,1.12015167]
[1751306366361,3.79125171,659.3,658.04,1.12015167]
[1751306366661,3.79125171,659.29,658.05,1.12015167]
[1751306366862,3.79125171,659.29,658.06,1.12015167]
[1751306367158,3.79125171,659.36,658.07,1.12015167]
[1751306367461,3.79125171,659.36,658.08,1.12015167]
[1751306367759,3.79125171,659.34,658.09,1.12015167]
[1751306367961,3.79125171,659.34,658.1,1.12015167]
[1751306368161,3.79125171,659.34,658.11,1.12015167]
[1751306368359,3.79125171,659.34,658.12,1.12015167]
[1751306368559,3.79125171,659.34,658.13,1.12015167]
[1751306368763,3.79125171,659.34,658.14,1.12015167]
[1751306368960,3.79125171,659.34,658.15,1.12015167]
[1751306369159,3.79125171,659.34,658.16,1.12015167]
[1751306369361,3.79125171,659.33,658.17,1.12015167]
[1751306369559,3.79125171,659.33,658.18,1.12015167]
[1751306369764,3.79125171,659.33,657.97,1.38763952]
[1751306370059,3.79125171,659.33,657.98,3.87039818]
[1751306370264,3.79125171,659.31,657.99,1.12039818]
[1751306370460,3.79125171,659.31,658.0,1.12039818]
[1751306370660,3.79125171,659.31,658.01,1.12039818]
[1751306370860,3.79125171,659.34,658.02,1.12039818]
[1751306371166,3.79125171,659.34,658.03,1.12039818]
[1751306371360,3.79125171,659.33,658.04,1.12039818]
[1751306371562,3.79125171,659.33,658.05,1.12039818]
[1751306371761,3.79125171,659.33,658.06,1.12039818]
[1751306372101,3.79125171,659.33,658.07,1.12039818]
[1751306372265,3.79125171,659.33,658.08,1.12039818]
[1751306372461,3.79125171,659.32,658.09,1.12039818]
[1751306372765,3.79125171,659.32,658.1,1.12039818]
[1751306372965,3.79125171,659.3,658.11,1.12039818]
[1751306373165,3.79125171,659.3,658.12,1.12039818]
[1751306373365,3.79125171,659.3,658.13,1.12039818]
[1751306373560,3.79125171,659.29,658.14,1.12039818]
[1751306373764,3.79125171,659.29,658.15,1.12039818]
[1751306373962,3.79125171,659.29,658.16,1.12039818]
[1751306374161,3.79125171,659.29,658.17,1.12039818]
[1751306374367,3.79125171,659.29,658.18,1.12039818]
[1751306374662,3.79125171,659.23,657.99,1.12335847]
[1751306374863,3.79125171,659.23,658.0,1.12114228]
[1751306375167,3.79125171,659.23,657.99,1.12335847]
[1751306375168,3.79125171,659.22,658.01,1.12114228]
[1751306375366,3.79125171,659.22,658.02,1.12114228]
[1751306375666,3.79125171,659.22,658.03,1.12114228]
[1751306375868,3.79125171,659.22,658.04,1.12114228]
[1751306376063,3.79125171,659.22,658.05,1.12114228]
[1751306376267,3.79125171,659.22,658.06,1.12114228]
[1751306376469,3.79125171,659.22,658.07,1.12114228]
[1751306376663,3.79125171,659.22,658.08,1.12114228]
[1751306376869,3.79125171,659.22,658.09,1.12114228]
[1751306377164,3.79125171,659.22,657.98,2.75]
[1751306377165,3.79125171,659.21,658.1,1.12114228]
[1751306377368,3.79125171,659.21,658.11,1.12114228]
[1751306377568,3.79125171,659.2,658.12,1.12114228]
[1751306377765,3.79125171,659.2,658.13,1.12114228]
[1751306378070,3.79125171,659.2,658.14,1.12114228]
[1751306378368,3.79125171,659.19,658.15,1.12114228]
[1751306378564,3.79125171,659.19,658.16,1.12114228]
[1751306378868,3.79125171,659.19,658.17,1.12114228]
[1751306379065,3.79125171,659.19,658.18,1.12114228]
[1751306379269,3.79125171,659.29,658.19,1.12114228]
[1751306379468,3.79125171,659.29,658.2,1.12114228]
[1751306379672,3.79125171,659.29,657.98,3.87335847]
[1751306379870,3.79125171,659.29,657.99,2.12826012]
[1751306380066,3.79125171,659.29,658.0,2.12826012]
[1751306380271,3.79125171,659.32,658.01,2.12826012]
[1751306380468,3.79125171,659.32,658.02,2.12826012]
[1751306380672,3.79125171,659.32,658.03,2.12826012]
[1751306380867,3.79125171,659.29,658.04,2.12826012]
[1751306381071,3.79125171,659.29,658.05,1.12201098]
[1751306381372,3.79125171,659.3,658.06,1.12201098]
[1751306381566,3.79125171,659.3,658.07,1.12201098]
[1751306381872,3.79125171,659.3,658.08,1.12235346]
[1751306382072,3.79125171,659.3,658.09,1.12235346]
[1751306382273,3.79125171,659.3,658.1,1.12235346]
[1751306382473,3.79125171,659.3,657.99,1.13612752]
[1751306382474,3.79125171,659.29,658.11,1.12235346]
[1751306382770,3.79125171,659.29,657.99,1.13612752]
[1751306382771,3.79125171,659.29,658.12,1.12235346]
[1751306382969,3.79125171,659.29,658.13,1.12235346]
[1751306383170,3.79125171,659.29,658.14,1.12235346]
[1751306383375,3.79125171,659.29,658.15,1.12235346]
[1751306383573,3.79125171,659.31,658.16,1.12235346]
[1751306383775,3.79125171,659.31,658.17,1.12235346]
[1751306383976,3.79125171,659.31,658.18,1.12235346]
[1751306384272,3.79125171,659.31,658.19,1.12235346]
[1751306384572,3.79125171,659.3,658.2,1.12235346]
[1751306384776,3.79125171,659.3,658.21,1.12235346]
[1751306385075,3.79125171,659.31,658.22,1.12235346]
[1751306385278,0.26427503,659.03,658.23,1.12235346]
[1751306385476,0.26427503,659.03,657.99,1.13612752]
[1751306385677,0.26427503,659.03,658.0,2.129462]
[1751306385877,0.26427503,659.03,658.01,2.129462]
[1751306386171,0.26427503,659.03,658.02,2.129462]
[1751306386477,0.26427503,659.03,658.03,2.129462]
[1751306386677,0.26427503,659.03,658.04,2.129462]
[1751306386878,0.26427503,659.03,658.05,2.129462]
[1751306387078,0.26427503,659.03,658.06,2.129462]
[1751306387278,0.26427503,659.03,658.07,1.12289383]
[1751306387478,0.26427503,659.03,658.08,1.12289383]
[1751306387679,0.26427503,659.03,658.09,1.12289383]
[1751306387875,0.26427503,659.03,658.1,1.12289383]
[1751306388075,0.26427503,659.03,658.11,1.12289383]
[1751306388283,0.26427503,659.03,658.12,1.12289383]
[1751306388576,0.26427503,659.03,658.13,1.12289383]
[1751306388777,0.26427503,659.03,658.14,1.12289383]
[1751306388980,0.26427503,659.03,658.15,1.12289383]
[1751306389280,0.26427503,659.03,658.16,1.12289383]
[1751306389477,0.26427503,659.03,658.17,1.12289383]
[1751306389684,0.26427503,659.03,658.18,1.12289383]
[1751306389881,0.26427503,659.03,658.19,1.12289383]
[1751306390078,0.26427503,659.03,658.2,1.12289383]
[1751306390283,0.26427503,659.03,658.21,1.12289383]
[1751306390483,0.26427503,659.03,658.22,1.12289383]
[1751306390783,0.26427503,659.03,658.23,1.12289383]
[1751306390982,0.26427503,659.03,658.24,1.12289383]
[1751306391182,0.26427503,659.03,658.25,1.12289383]
[1751306391381,0.26427503,659.03,658.26,1.12289383]
[1751306391580,0.26427503,659.03,658.27,1.12289383]
[1751306391786,0.26427503,659.03,658.04,1.13612752]
[1751306391986,0.26427503,659.03,658.05,2.13164637]
[1751306392181,0.26427503,659.03,658.06,2.13164637]
[1751306392487,0.26427503,659.03,658.07,2.13164637]
[1751306392690,0.26427503,659.03,658.08,1.12442066]
[1751306392885,0.26427503,659.03,658.09,1.12442066]
[1751306393085,0.26427503,659.03,658.1,1.12442066]
[1751306393286,0.26427503,659.03,658.11,1.12442066]
[1751306393486,0.26427503,659.03,658.12,1.12442066]
[1751306393790,0.26427503,659.03,658.13,1.12442066]
[1751306393984,0.26427503,659.03,658.14,1.12442066]
[1751306394185,0.26427503,659.03,658.15,1.12442066]
[1751306394411,0.26427503,659.03,658.16,1.12442066]
[1751306394688,0.26427503,659.03,658.17,1.12442066]
[1751306394987,0.26427503,659.03,658.18,1.12442066]
[1751306395184,0.26427503,659.03,658.19,1.12442066]
[1751306395388,0.26427503,659.03,658.2,1.12442066]
[1751306395586,0.26427503,659.03,658.21,1.12442066]
[1751306395789,0.26427503,659.03,658.22,1.12442066]
[1751306396084,0.26427503,659.03,658.23,1.12442066]
[1751306396289,0.26427503,659.03,658.24,1.12442066]
[1751306396497,0.26427503,659.03,658.25,1.12442066]
[1751306396688,0.26427503,659.03,658.04,1.13612752]
[1751306396689,0.26427503,659.03,658.26,1.12442066]
[1751306396988,0.26427503,659.03,658.27,1.12442066]
[1751306397291,0.26427503,659.03,658.03,1.13612752]
[1751306397587,0.26427503,659.03,658.04,1.12497202]
[1751306397785,0.26427503,659.03,658.05,1.12497202]
[1751306397986,0.26427503,659.03,658.06,1.12497202]
[1751306398289,0.26427503,659.03,658.07,1.12497202]
[1751306398487,0.26427503,659.03,658.08,1.12497202]
[1751306398689,0.26427503,659.03,658.09,1.12497202]
[1751306398984,0.26427503,659.03,658.1,1.12497202]
[1751306399185,0.26427503,659.03,658.11,1.12497202]
[1751306399389,0.26427503,659.03,658.12,1.12497202]
[1751306399588,0.26427503,659.03,658.13,1.12497202]
[1751306399788,0.26427503,659.03,658.14,1.12497202]
[1751306399987,0.26427503,659.03,658.15,1.12497202]
[1751306400290,0.26427503,659.03,658.16,1.12497202]
[1751306400590,0.26427503,659.03,658.17,1.12497202]
[1751306400789,0.26427503,659.03,658.18,1.12497202]
[1751306400988,0.26427503,659.03,658.02,1.13612752]
[1751306400989,0.26427503,659.03,658.19,1.12497202]
[1751306401187,0.26427503,659.03,658.2,1.12497202]
[1751306401387,0.26427503,659.03,658.21,1.12497202]
[1751306401686,0.26427503,659.03,658.22,1.12497202]
[1751306401886,0.26427503,659.03,658.2,1.819]
[1751306402091,0.26427503,659.03,658.21,1.12516527]
[1751306402292,0.26427503,659.03,658.22,1.12516527]
[1751306402594,0.26427503,659.03,658.2,1.819]
[1751306402888,0.26427503,659.03,658.21,1.12518009]
[1751306403088,0.26427503,659.03,658.22,1.12518009]
[1751306403287,0.26427503,659.03,658.2,1.819]
[1751306403588,0.26427503,659.03,658.21,1.12596468]
[1751306403792,0.26427503,659.03,658.22,1.12596468]
[1751306404091,0.26427503,659.03,658.2,1.819]
[1751306404392,0.26427503,659.03,658.21,1.12597374]
[1751306404593,0.26427503,659.03,658.22,1.12597374]
[1751306404889,0.26427503,659.03,658.2,1.819]
[1751306405094,0.26427503,659.03,658.21,1.12598628]
[1751306405286,0.26427503,659.03,658.22,1.12598628]
[1751306405488,0.26427503,659.03,658.2,1.819]
[1751306405690,0.26427503,659.03,658.21,1.12599307]
[1751306405888,0.26427503,659.03,658.22,1.12599307]
[1751306406191,0.26427503,659.03,658.2,1.819]
[1751306406385,0.26427503,659.03,658.21,1.12599452]
[1751306406591,0.26427503,659.03,658.22,1.12599452]
[1751306406786,0.26427503,659.03,658.2,1.819]
[1751306406988,0.26427503,659.03,658.21,1.12600071]
[1751306407296,0.26427503,659.03,658.22,1.12600071]
[1751306407487,0.26427503,659.03,658.23,1.12600071]
[1751306407792,0.26427503,659.03,658.24,1.12600071]
[1751306408088,0.26427503,659.03,658.25,1.12600071]
[1751306408291,0.26427503,659.03,658.26,1.12600071]
[1751306408588,0.26427503,659.03,658.23,2.969]
[1751306408791,0.26427503,659.03,658.24,1.1260188]
[1751306409091,0.26427503,659.03,658.25,1.1260188]
[1751306409292,0.26427503,659.03,658.26,1.1260188]
[1751306409492,0.26427503,659.03,658.23,2.969]
[1751306409694,0.26427503,659.03,658.24,1.12579202]
[1751306409890,0.26427503,659.03,658.25,1.12579202]
[1751306410190,0.26427503,659.03,658.26,1.12575076]
[1751306410390,0.26427503,659.03,658.23,2.969]
[1751306410589,0.26427503,659.03,658.24,1.12562022]
[1751306410791,0.26427503,659.03,658.25,1.12562022]
[1751306410990,0.26427503,659.03,658.26,1.12562022]
[1751306411291,0.26427503,659.03,658.23,2.969]
[1751306411489,0.26427503,659.03,658.24,1.1256336]
[1751306411689,0.26427503,659.03,658.25,1.1256336]
[1751306411896,0.26427503,659.03,658.26,1.1256336]
[1751306412093,0.26427503,659.03,658.23,2.969]
[1751306412297,0.26427503,659.03,658.24,1.12563567]
[1751306412492,0.26427503,659.03,658.25,1.12563567]
[1751306412692,0.26427503,659.03,658.26,1.12563567]
[1751306412890,0.26427503,659.03,658.23,2.969]
[1751306413195,0.26427503,659.03,658.24,1.12564862]
[1751306413495,0.26427503,659.03,658.25,1.12564862]
[1751306413692,0.26427503,659.03,658.26,1.12564862]
[1751306413891,0.26427503,659.03,658.23,2.969]
[1751306414109,0.26427503,659.03,658.24,1.12566492]
[1751306414295,0.26427503,659.03,658.25,1.12566492]
[1751306414496,0.26427503,659.03,658.26,1.12566492]
[1751306414692,0.26427503,659.03,658.23,2.969]
[1751306414907,0.26427503,659.03,658.24,1.12568385]
[1751306415102,0.26427503,659.03,658.25,1.12568385]
[1751306415294,0.26427503,659.03,658.23,2.969]
[1751306415295,0.26427503,659.03,658.26,1.12568385]
[1751306415495,0.26427503,659.03,658.23,2.969]
[1751306415798,0.26427503,659.03,658.24,1.12570506]
[1751306415996,0.26427503,659.03,658.25,1.12570506]
[1751306416197,0.26427503,659.03,658.26,1.12570506]
[1751306416494,0.26427503,659.03,658.23,2.969]
[1751306416694,0.26427503,659.03,658.24,1.12572907]
[1751306416897,0.26427503,659.03,658.25,1.12572907]
[1751306417094,0.26427503,659.03,658.26,1.12572907]
[1751306417302,0.26427503,659.03,658.23,2.969]
[1751306417496,0.26427503,659.03,658.24,1.12574539]
[1751306417697,0.26427503,659.03,658.25,1.12574539]
[1751306417899,0.26427503,659.03,658.23,2.969]
[1751306418102,0.26427503,659.03,658.24,1.12574566]
[1751306418399,0.26427503,659.03,658.23,2.969]
[1751306429410,3.79125171,658.98,658.23,2.969]
[1751306430008,0.26427503,659.03,658.23,2.969]
[1751306434406,0.26427503,659.03,658.24,2.592]
[1751306440116,3.79125171,659.0,658.24,2.592]
[1751306441017,0.26427503,659.03,658.24,2.592]
[1751306441018,3.79125171,659.02,658.24,2.592]
[1751306442719,4.05552674,659.03,658.24,2.592]
[1751306444321,0.26427503,659.03,658.24,2.592]
[1751306447418,3.79125171,658.99,658.24,2.592]
[1751306447820,3.79125171,659.0,658.24,2.592]
[1751306448423,3.79125171,658.99,658.24,2.592]
[1751306449521,0.26427503,659.03,658.24,2.592]
[1751306454222,4.05552674,659.03,658.24,2.592]
[1751306455728,0.26427503,659.03,658.24,2.592]
[1751306469845,4.05552674,659.03,658.24,2.592]
[1751306470448,0.26427503,659.03,658.24,2.592]
[1751306485256,3.79125171,659.01,658.24,2.592]
[1751306486860,3.79125171,659.02,658.24,2.592]
[1751306487357,3.79125171,658.98,658.24,2.592]
[1751306487961,3.79125171,658.94,658.24,2.592]
[1751306489563,3.79125171,658.96,658.24,2.592]
[1751306490463,3.79125171,658.96,658.14,3.182]
[1751306491063,0.26427503,659.03,658.14,3.182]
[1751306493563,0.26427503,659.03,658.15,2.695]
[1751306519685,0.26427503,659.03,657.9,1.40053299]
[1751306519890,0.26427503,659.03,657.91,1.12764423]
[1751306520089,0.26427503,659.03,657.92,1.12764423]
[1751306520384,0.26427503,659.03,657.93,1.12764423]
[1751306520585,0.26427503,659.03,657.94,1.12764423]
[1751306520886,0.26427503,659.03,657.95,1.12764423]
[1751306521088,0.26427503,659.03,657.96,1.12764423]
[1751306521387,0.26427503,659.03,657.97,1.12764423]
[1751306521586,0.26427503,659.03,657.98,1.12764423]
[1751306521786,0.26427503,659.03,657.99,1.12764423]
[1751306521986,0.26427503,659.03,658.0,1.12764423]
[1751306522190,0.26427503,659.03,658.01,1.12764423]
[1751306522391,0.26427503,659.03,658.02,1.12764423]
[1751306522691,0.26427503,659.03,658.03,3.08764423]
[1751306522898,0.26427503,659.03,658.04,1.12764423]
[1751306523089,0.26427503,659.03,658.05,1.12764423]
[1751306523289,0.26427503,659.03,658.06,1.12764423]
[1751306523486,0.26427503,659.03,658.07,1.12764423]
[1751306523786,0.26427503,659.03,658.08,1.12764423]
[1751306523992,0.26427503,659.03,658.09,1.12764423]
[1751306524190,0.26427503,659.03,658.1,1.12764423]
[1751306524497,0.26427503,659.03,658.11,1.12764423]
[1751306524691,0.26427503,659.03,658.12,1.12764423]
[1751306524894,0.26427503,659.03,658.13,1.12764423]
[1751306525093,0.26427503,659.03,658.14,1.12764423]
[1751306525389,0.26427503,659.03,658.03,1.96]
[1751306525588,0.26427503,659.03,658.04,1.1280823]
[1751306525792,0.26427503,659.03,658.05,1.1280823]
[1751306525992,0.26427503,659.03,658.06,1.1280823]
[1751306526193,0.26427503,659.03,658.07,1.1280823]
[1751306526490,0.26427503,659.03,658.08,1.1280823]
[1751306526692,0.26427503,659.03,658.09,1.1280823]
[1751306526893,0.26427503,659.03,658.1,1.1280823]
[1751306527190,0.26427503,659.03,658.11,1.1280823]
[1751306527389,0.26427503,659.03,658.12,1.1280823]
[1751306527590,0.26427503,659.03,658.13,1.1280823]
[1751306527792,0.26427503,659.03,658.14,1.1280823]
[1751306527992,0.26427503,659.03,658.15,1.1280823]
[1751306528293,0.26427503,659.03,658.16,1.1280823]
[1751306528497,0.26427503,659.03,658.17,1.1280823]
[1751306528692,0.26427503,659.03,658.18,1.1280823]
[1751306528891,0.26427503,659.03,658.19,1.1280823]
[1751306529097,0.26427503,659.03,658.2,1.1280823]
[1751306529298,0.26427503,659.03,658.21,1.1280823]
[1751306529597,0.26427503,659.03,658.22,1.1280823]
[1751306529897,0.26427503,659.03,658.23,1.1280823]
[1751306530096,0.26427503,659.03,658.24,1.1280823]
[1751306530297,0.26427503,659.03,658.25,1.1280823]
[1751306530597,0.26427503,659.03,658.03,1.96]
[1751306530897,0.26427503,659.03,658.04,1.12695237]
[1751306531102,0.26427503,659.03,658.05,1.12695237]
[1751306531296,0.26427503,659.03,658.06,1.12695237]
[1751306531494,0.26427503,659.03,658.07,1.12695237]
[1751306531696,0.26427503,659.03,658.08,1.12695237]
[1751306531898,0.26427503,659.03,658.09,1.12695237]
[1751306532198,0.26427503,659.03,658.1,1.12695237]
[1751306532396,0.26427503,659.03,658.11,1.12695237]
[1751306532597,0.26427503,659.03,658.12,1.12695237]
[1751306532896,0.26427503,659.03,658.13,1.12695237]
[1751306533092,0.26427503,659.03,658.14,1.12695237]
[1751306533298,0.26427503,659.03,658.15,1.12695237]
[1751306533495,0.26427503,659.03,658.16,1.12695237]
[1751306533694,0.26427503,659.03,658.17,1.12695237]
[1751306533893,0.26427503,659.03,658.18,1.12695237]
[1751306534093,0.26427503,659.03,658.03,1.96]
[1751306534094,0.26427503,659.03,658.19,1.12695237]
[1751306534398,0.26427503,659.03,658.2,1.12695237]
[1751306534597,0.26427503,659.03,658.21,1.12695237]
[1751306534799,0.26427503,659.03,658.22,1.12695237]
[1751306534999,0.26427503,659.03,658.23,1.12695237]
[1751306535195,0.26427503,659.03,658.03,1.96]
[1751306535395,0.26427503,659.03,658.04,1.12633542]
[1751306535596,0.26427503,659.03,658.05,1.12633542]
[1751306535796,0.26427503,659.03,658.06,1.12633542]
[1751306536000,0.26427503,659.03,658.07,1.12633542]
[1751306536200,0.26427503,659.03,658.08,1.12633542]
[1751306536496,0.26427503,659.03,658.09,1.12633542]
[1751306536702,0.26427503,659.03,658.1,1.12633542]
[1751306536898,0.26427503,659.03,658.11,1.12633542]
[1751306537198,0.26427503,659.03,658.12,1.12633542]
[1751306537502,0.26427503,659.03,658.13,1.12633542]
[1751306537699,0.26427503,659.03,658.14,1.12633542]
[1751306537899,0.26427503,659.03,658.15,1.12633542]
[1751306538103,0.26427503,659.03,658.16,1.12633542]
[1751306538298,0.26427503,659.03,658.03,1.96]
[1751306538501,0.26427503,659.03,658.04,1.1259598]
[1751306538704,0.26427503,659.03,658.05,1.1259598]
[1751306538903,0.26427503,659.03,658.06,1.1259598]
[1751306539099,0.26427503,659.03,658.07,1.1259598]
[1751306539298,0.26427503,659.03,658.08,1.1259598]
[1751306539502,0.26427503,659.03,658.09,1.1259598]
[1751306539702,0.26427503,659.03,658.1,1.1259598]
[1751306539903,0.26427503,659.03,658.11,1.1259598]
[1751306540198,0.26427503,659.03,658.12,1.1259598]
[1751306540403,0.26427503,659.03,658.13,1.1259598]
[1751306540598,0.26427503,659.03,658.14,1.1259598]
[1751306540801,0.26427503,659.03,658.15,1.1259598]
[1751306541001,0.26427503,659.03,658.16,1.1259598]
[1751306541205,0.26427503,659.03,658.03,1.96]
[1751306541500,0.26427503,659.03,658.04,1.12577852]
[1751306541703,0.26427503,659.03,658.05,1.12577852]
[1751306541904,0.26427503,659.03,658.06,1.12577852]
[1751306542105,0.26427503,659.03,658.07,1.12577852]
[1751306542300,0.26427503,659.03,658.08,1.12577852]
[1751306542500,0.26427503,659.03,658.09,1.12577852]
[1751306542700,0.26427503,659.03,658.1,1.12577852]
[1751306542905,0.26427503,659.03,658.11,1.12577852]
[1751306543208,0.26427503,659.03,658.12,1.12577852]
[1751306543407,0.26427503,659.03,658.13,1.12577852]
[1751306543599,0.26427503,659.03,658.14,1.12577852]
[1751306543803,0.26427503,659.03,658.15,1.12577852]
[1751306544005,0.26427503,659.03,658.03,1.96]
[1751306544205,0.26427503,659.03,658.04,1.12556874]
[1751306544402,0.26427503,659.03,658.05,1.12556874]
[1751306544604,0.26427503,659.03,658.06,1.12556874]
[1751306544804,0.26427503,659.03,658.07,1.12556874]
[1751306545101,0.26427503,659.03,658.08,1.12556874]
[1751306545306,0.26427503,659.03,658.09,1.12556874]
[1751306545506,0.26427503,659.03,658.1,1.12556874]
[1751306545701,0.26427503,659.03,658.11,1.12556874]
[1751306545901,0.26427503,659.03,658.12,1.12556874]
[1751306546100,0.26427503,659.03,658.13,1.12556874]
[1751306546304,0.26427503,659.03,658.14,1.12556874]
[1751306546502,0.26427503,659.03,658.03,1.96]
[1751306546703,0.26427503,659.03,658.04,1.12540433]
[1751306546903,0.26427503,659.03,658.05,1.12540433]
[1751306547107,0.26427503,659.03,658.06,1.12540433]
[1751306547305,0.26427503,659.03,658.07,1.12540433]
[1751306547506,0.26427503,659.03,658.08,1.12540433]
[1751306547707,0.26427503,659.03,658.09,1.12540433]
[1751306547908,0.26427503,659.03,658.1,1.12540433]
[1751306548106,0.26427503,659.03,658.11,1.12540433]
[1751306548308,0.26427503,659.03,658.12,1.12540433]
[1751306548509,0.26427503,659.03,658.13,1.12540433]
[1751306548708,0.26427503,659.03,658.14,1.12540433]
[1751306549003,0.26427503,659.03,658.15,1.12540433]
[1751306549206,0.26427503,659.03,658.16,1.12540433]
[1751306549507,0.26427503,659.03,658.17,1.12540433]
[1751306549707,0.26427503,659.03,658.18,1.12540433]
[1751306549907,0.26427503,659.03,658.19,1.12540433]
[1751306550110,0.26427503,659.03,658.2,1.12540433]
[1751306550309,0.26427503,659.03,658.21,1.12540433]
[1751306550507,0.26427503,659.03,658.22,1.12540433]
[1751306550809,0.26427503,659.03,658.23,1.12540433]
[1751306551009,0.26427503,659.03,658.05,2.474]
[1751306551206,0.26427503,659.03,658.06,1.12515059]
[1751306551412,0.26427503,659.03,658.07,1.12515059]
[1751306551608,0.26427503,659.03,658.08,1.12515059]
[1751306551809,0.26427503,659.03,658.09,1.12515059]
[1751306552012,0.26427503,659.03,658.1,1.12515059]
[1751306552208,0.26427503,659.03,658.11,1.12515059]
[1751306552511,0.26427503,659.03,658.12,1.12515059]
[1751306552713,0.26427503,659.03,658.13,1.12515059]
[1751306552910,0.26427503,659.03,658.14,1.12515059]
[1751306553111,0.26427503,659.03,658.15,1.12515059]
[1751306553414,0.26427503,659.03,658.16,1.12515059]
[1751306553612,0.26427503,659.03,658.17,1.12515059]
[1751306553826,0.26427503,659.03,658.18,1.12515059]
[1751306554011,0.26427503,659.03,658.19,1.12515059]
[1751306554211,0.26427503,659.03,658.2,1.12515059]
[1751306554412,0.26427503,659.03,658.21,1.12515059]
[1751306554618,0.26427503,659.03,658.22,1.12515059]
[1751306554814,0.26427503,659.03,658.05,2.474]
[1751306555015,0.26427503,659.03,658.06,1.12499684]
[1751306555214,0.26427503,659.03,658.07,1.12499684]
[1751306555416,0.26427503,659.03,658.08,1.12499684]
[1751306555615,0.26427503,659.03,658.09,1.12499684]
[1751306555817,0.26427503,659.03,658.1,1.12499684]
[1751306556014,0.26427503,659.03,658.11,1.12499684]
[1751306556213,0.26427503,659.03,658.12,1.12499684]
[1751306556517,0.26427503,659.03,658.13,1.12499684]
[1751306556813,0.26427503,659.03,658.14,1.12499684]